fUST/lending_fUST_20240310
["ID","MTS","AMOUNT","RATE_DAILY","PERIOD"]
[318103294,1710072643492,-1786.35511016,0.0002291,2]
[318103296,1710072643501,-461.31724256,0.0002291,2]
[318103299,1710072643512,-175.51275744,0.0002291,2]
[318103301,1710072643522,-558.41812253,0.0002291,2]
[318103303,1710072643531,-2736.37004752,0.00022911,2]
[318103381,1710072646321,-500.0,0.00022738,2]
[318103382,1710072646331,-493.99999,0.00022738,2]
[318103383,1710072646371,-6.00001,0.00022738,2]
[318103384,1710072646381,-622.50271099,0.00022738,2]
[318103386,1710072646390,-489.71297004,0.00022738,2]
[318103388,1710072646400,-1562.33995248,0.00022911,2]
[318103389,1710072646409,-500.0,0.00022912,2]
[318103390,1710072646418,-500.0,0.00022912,2]
[318103391,1710072646427,-500.0,0.00022912,2]
[318103392,1710072646437,-500.0,0.00022912,2]
[318103393,1710072646447,-500.0,0.00022912,2]
[318103394,1710072646456,-500.0,0.00022912,2]
[318103395,1710072646466,-500.0,0.00022912,2]
[318103396,1710072646478,-2821.43,0.00022919,2]
[318103397,1710072646487,-1222.1,0.00022919,2]
[318103398,1710072646500,-2000.0,0.0002292,2]
[318103399,1710072646512,-2000.0,0.0002293,2]
[318103400,1710072646525,-500.0,0.00022938,2]
[318103401,1710072646539,-2000.0,0.0002294,2]
[318103402,1710072646551,-2000.0,0.0002295,2]
[318103403,1710072646563,-2000.0,0.0002296,2]
[318103404,1710072646575,-2000.0,0.0002297,2]
[318103405,1710072646586,-2000.0,0.0002298,2]
[318103406,1710072646596,-2000.0,0.0002299,2]
[318103407,1710072646607,-636.83,0.00022995,2]
[318103408,1710072646618,-2498.26,0.00022995,2]
[318103409,1710072646630,-500.0,0.00022995,2]
[318103410,1710072646641,-500.0,0.00022995,2]
[318103411,1710072646652,-3226.5,0.00022995,2]
[318103412,1710072646663,-345.1774017,0.00022995,2]
[318103413,1710072646675,-251.36280134,0.00022995,2]
[318103414,1710072646686,-500.0,0.00022996,2]
[318103415,1710072646697,-154.94148642,0.00022996,2]
[318103416,1710072646709,-500.0,0.00022996,2]
[318103417,1710072646721,-500.0,0.00022996,2]
[318103418,1710072646732,-500.0,0.00022996,2]
[318103419,1710072646744,-500.0,0.00022996,2]
[318103420,1710072646755,-1002.69,0.00022996,2]
[318103421,1710072646767,-2821.43,0.00022996,2]
[318103422,1710072646777,-1222.1,0.00022996,2]
[318103423,1710072646786,-500.0,0.00022996,2]
[318103424,1710072646796,-500.0,0.00022996,2]
[318103425,1710072646807,-451.54,0.00022996,2]
[318103426,1710072646817,-151.0,0.00022996,2]
[318103427,1710072646828,-1476.26,0.00022996,2]
[318103428,1710072646839,-500.0,0.00022996,2]
[318103429,1710072646849,-500.0,0.00022996,2]
[318103430,1710072646860,-500.0,0.00022996,2]
[318103431,1710072646872,-500.0,0.00022996,2]
[318103432,1710072646882,-599.43,0.00022996,2]
[318103433,1710072646892,-500.0,0.00022997,2]
[318103434,1710072646903,-500.0,0.00022997,2]
[318103435,1710072646914,-500.0,0.00022998,2]
[318103436,1710072646924,-2821.43,0.00022998,2]
[318103437,1710072646935,-1222.1,0.00022998,2]
[318103438,1710072646946,-636.83,0.00022998,2]
[318103439,1710072646956,-407.38,0.00022999,2]
[318103440,1710072646966,-407.38,0.00022999,2]
[318103441,1710072646977,-407.38,0.00022999,2]
[318103442,1710072646986,-407.38,0.00022999,2]
[318103443,1710072646996,-407.41,0.00022999,2]
[318103444,1710072647006,-500.0,0.00022999,2]
[318103445,1710072647018,-500.0,0.00022999,2]
[318103446,1710072647029,-500.0,0.00022999,2]
[318103447,1710072647039,-500.0,0.00022999,2]
[318103448,1710072647050,-500.0,0.00022999,2]
[318103449,1710072647060,-500.0,0.00022999,2]
[318103450,1710072647072,-500.0,0.00022999,2]
[318103451,1710072647084,-500.0,0.00022999,2]
[318103452,1710072647094,-1002.69,0.00022999,2]
[318103453,1710072647105,-1002.69,0.00022999,2]
[318103454,1710072647115,-1002.69,0.00022999,2]
[318103455,1710072647125,-2821.43,0.00022999,2]
[318103456,1710072647136,-335.11093224,0.00022999,2]
[318103457,1710072647153,-667.57906776,0.00022999,2]
[318103458,1710072647163,-2821.43,0.00022999,2]
[318103459,1710072647175,-2821.43,0.00022999,2]
[318103460,1710072647185,-2821.43,0.00022999,2]
[318103461,1710072647196,-1222.1,0.00022999,2]
[318103462,1710072647207,-1222.1,0.00022999,2]
[318103463,1710072647218,-1222.1,0.00022999,2]
[318103464,1710072647231,-1222.1,0.00022999,2]
[318103465,1710072647242,-636.83,0.00022999,2]
[318103466,1710072647254,-636.83,0.00022999,2]
[318103467,1710072647265,-636.83,0.00022999,2]
[318103468,1710072647276,-636.83,0.00022999,2]
[318103469,1710072647287,-2498.26,0.00022999,2]
[318103470,1710072647298,-2498.26,0.00022999,2]
[318103471,1710072647308,-2498.26,0.00022999,2]
[318103472,1710072647317,-2498.26,0.00022999,2]
[318103473,1710072647327,-500.0,0.00022999,2]
[318103474,1710072647337,-500.0,0.00022999,2]
[318103475,1710072647347,-500.0,0.00022999,2]
[318103476,1710072647356,-500.0,0.00022999,2]
[318103477,1710072647366,-4298.71,0.00022999,2]
[318103478,1710072647376,-4298.71,0.00022999,2]
[318103479,1710072647386,-4298.71,0.00022999,2]
[318103480,1710072647397,-4298.71,0.00022999,2]
[318103481,1710072647407,-4298.71,0.00022999,2]
[318103482,1710072647418,-328.32234175,0.00022999,2]
[318103483,1710072647428,-151.0,0.00022999,2]
[318103484,1710072647439,-151.0,0.00022999,2]
[318103485,1710072647449,-3226.5,0.00022999,2]
[318103486,1710072647459,-3226.5,0.00022999,2]
[318103487,1710072647470,-3226.5,0.00022999,2]
[318103488,1710072647481,-3226.5,0.00022999,2]
[318103489,1710072647492,-1476.26,0.00022999,2]
[318103490,1710072647502,-1476.26,0.00022999,2]
[318103491,1710072647511,-1476.26,0.00022999,2]
[318103492,1710072647521,-1476.26,0.00022999,2]
[318103493,1710072647531,-500.0,0.00022999,2]
[318103494,1710072647541,-500.0,0.00022999,2]
[318103495,1710072647551,-500.0,0.00022999,2]
[318103496,1710072647561,-500.0,0.00022999,2]
[318103497,1710072647571,-500.0,0.00022999,2]
[318103498,1710072647581,-500.0,0.00022999,2]
[318103499,1710072647592,-500.0,0.00022999,2]
[318103500,1710072647602,-500.0,0.00022999,2]
[318103501,1710072647612,-500.0,0.00022999,2]
[318103502,1710072647622,-500.0,0.00022999,2]
[318103503,1710072647633,-500.0,0.00022999,2]
[318103504,1710072647643,-500.0,0.00022999,2]
[318103505,1710072647653,-500.0,0.00022999,2]
[318103506,1710072647663,-502.30868458,0.00022999,2]
[318103507,1710072647674,-599.43,0.00022999,2]
[318103508,1710072647684,-599.43,0.00022999,2]
[318103509,1710072647694,-599.43,0.00022999,2]
[318103510,1710072647704,-599.43,0.00022999,2]
[318103511,1710072647827,-1114.7353564,0.00023,6]
[318103512,1710072647840,-69777.95421955,0.00023,6]
[318103513,1710072965970,200.0,0.00027,120]
[318103515,1710073059901,248.16266,0.00019631,2]
[318103516,1710073107816,155.06047358,0.00019631,2]
[318103517,1710073109227,8781.45889079,0.00019631,2]
[318103519,1710073466797,262.77802159,0.00018702,7]
[318103520,1710073476306,2224.81020891,0.00018702,5]
[318103521,1710073630085,-321.93735775,0.00018506,2]
[318103522,1710073630108,-155.11168041,0.00018507,2]
[318103523,1710073630129,-155.11168041,0.00018507,2]
[318103524,1710073630150,-280.54842491,0.00018508,2]
[318103525,1710073630169,-155.11012819,0.00018694,2]
[318103526,1710073630190,-13724.30329054,0.00018701,2]
[318103527,1710073630722,280.54842491,0.00018505,2]
[318103528,1710073632215,14992.31021288,0.00018515,2]
[318103538,1710073781334,262.77802159,0.00018514,7]
[318103539,1710073808263,2224.81020891,0.00018514,5]
[318103568,1710073832544,-2148.8499441,0.0001833,2]
[318103569,1710073832554,-155.05892239,0.00018514,2]
[318103570,1710073832563,-14268.84219926,0.00018514,2]
[318103589,1710073839088,-1680.88524989,0.00018514,2]
[318103591,1710073839099,-348.0919071,0.00018706,2]
[318103592,1710073839108,-336.22535275,0.000189,2]
[318103593,1710073839119,-155.11168041,0.00019,2]
[318103594,1710073839128,-155.05892239,0.00020576,2]
[318103595,1710073839138,-280.54842491,0.00020577,2]
[318103596,1710073839147,-336.69909941,0.00020578,2]
[318103598,1710073839158,-201.5653476,0.00020579,4]
[318103600,1710073839167,-1718.8018753,0.00020579,2]
[318103601,1710073839176,-879.39982946,0.00020678,2]
[318103603,1710073839189,-662.85805754,0.00020678,2]
[318103605,1710073839201,-13815.25877751,0.00020678,2]
[318103668,1710073844935,-155.05892239,0.00020575,2]
[318103671,1710073844945,-12834.31089096,0.00020678,2]
[318103673,1710073844954,-473.8805456,0.00020679,2]
[318103675,1710073844964,-500.0,0.00020679,2]
[318103677,1710073844974,-500.0,0.00020679,2]
[318103679,1710073844984,-500.0,0.00020679,2]
[318103681,1710073844994,-500.0,0.00020679,2]
[318103683,1710073845004,-500.0,0.00020679,2]
[318103684,1710073845013,-500.0,0.00020679,2]
[318103686,1710073845023,-500.0,0.00020679,2]
[318103689,1710073845033,-500.0,0.00020679,2]
[318103690,1710073845042,-500.0,0.00020679,2]
[318103693,1710073845055,-557.7459738,0.00020679,2]
[318103695,1710073845065,-500.0,0.00020679,2]
[318103697,1710073845076,-500.0,0.00020679,2]
[318103699,1710073845089,-500.0,0.00020679,2]
[318103701,1710073845099,-500.0,0.00020679,2]
[318103703,1710073845109,-500.0,0.00020679,2]
[318103705,1710073845119,-500.0,0.00020679,2]
[318103707,1710073845129,-10816.00571084,0.0002068,2]
[318103709,1710073845139,-3941.83631875,0.00021,2]
[318103711,1710073845150,-1718.80187528,0.00021094,2]
[318103713,1710073845160,-1945.4795,0.00021192,7]
[318103715,1710073845171,-1718.80187528,0.00021609,2]
[318103717,1710073845181,-5000.0,0.00022,2]
[318103719,1710073845191,-324.0,0.00022,2]
[318103721,1710073845200,-197.0,0.00022,2]
[318103723,1710073845210,-327.45198075,0.00022084,2]
[318103725,1710073845220,-415.670188,0.00022085,2]
[318103727,1710073845230,-469.98406,0.00022085,2]
[318103729,1710073845240,-201.0,0.00022092,2]
[318103731,1710073845250,-1718.80187528,0.00022124,2]
[318103733,1710073845260,-324.0,0.00022192,2]
[318103735,1710073845270,-201.004339,0.00022274,2]
[318103737,1710073845279,-153.0,0.00022274,2]
[318103739,1710073845289,-153.0,0.00022274,2]
[318103740,1710073845298,-201.004339,0.00022274,2]
[318103742,1710073845307,-201.004339,0.00022274,2]
[318103743,1710073845316,-199.4816087,0.00022274,2]
[318103745,1710073845327,-153.0,0.00022274,2]
[318103747,1710073845336,-153.0,0.00022274,2]
[318103749,1710073845345,-154.2508101,0.00022278,2]
[318103751,1710073845354,-153.2111663,0.00022278,2]
[318103753,1710073845363,-153.2130086,0.00022278,2]
[318103755,1710073845373,-1088.55857715,0.00022281,2]
[318103757,1710073845382,-153.0,0.00022356,2]
[318103759,1710073845391,-415.670188,0.00022361,2]
[318103760,1710073845401,-469.98406,0.00022361,2]
[318103762,1710073845410,-415.670188,0.00022637,2]
[318103764,1710073845419,-469.98406,0.00022637,2]
[318103766,1710073845428,-1718.80187528,0.00022639,2]
[318103767,1710073845437,-184.32470784,0.000227,2]
[318103768,1710073845446,-500.0,0.00022737,2]
[318103769,1710073845455,-500.0,0.00022737,2]
[318103771,1710073845466,-500.0,0.00022737,2]
[318103773,1710073845475,-500.0,0.00022737,2]
[318103775,1710073845484,-500.0,0.00022737,2]
[318103776,1710073845493,-503.89656675,0.00022737,2]
[318103777,1710073845502,-500.0,0.00022737,2]
[318103778,1710073845511,-500.0,0.00022737,2]
[318103779,1710073845521,-500.0,0.00022737,2]
[318103780,1710073845531,-500.0,0.00022737,2]
[318103781,1710073845540,-500.0,0.00022737,2]
[318103782,1710073845551,-500.0,0.00022737,2]
[318103783,1710073845561,-500.0,0.00022737,2]
[318103784,1710073845575,-1774.75,0.00022738,2]
[318103795,1710073845688,-1774.75,0.00022738,2]
[318103797,1710073845740,-1774.75,0.00022738,2]
[318103799,1710073845753,-1774.75,0.00022738,2]
[318103801,1710073845765,-1774.75,0.00022738,2]
[318103803,1710073845777,-1774.75,0.00022738,2]
[318103805,1710073845788,-1774.75,0.00022738,2]
[318103806,1710073845799,-1774.75,0.00022738,2]
[318103808,1710073845810,-1774.75,0.00022738,2]
[318103810,1710073845821,-1774.75,0.00022738,2]
[318103812,1710073845836,-500.0,0.00022739,2]
[318103814,1710073845848,-500.0,0.00022739,2]
[318103816,1710073845859,-500.0,0.00022739,2]
[318103819,1710073845871,-500.0,0.00022739,2]
[318103820,1710073845882,-500.0,0.00022739,2]
[318103822,1710073845893,-500.0,0.00022739,2]
[318103825,1710073845903,-282.93994122,0.00022739,2]
[318103828,1710073845914,-500.0,0.00022739,2]
[318103830,1710073845926,-500.0,0.00022739,2]
[318103833,1710073845937,-500.0,0.00022739,2]
[318103835,1710073845947,-268.53919389,0.00022739,2]
[318103836,1710073845958,-500.0,0.00022739,2]
[318103838,1710073845968,-500.0,0.00022739,2]
[318103840,1710073845979,-500.0,0.00022739,2]
[318103842,1710073845990,-500.0,0.00022739,2]
[318103844,1710073846001,-500.0,0.00022739,2]
[318103846,1710073846012,-500.0,0.00022739,2]
[318103848,1710073846022,-500.0,0.00022739,2]
[318103849,1710073846032,-500.0,0.00022739,2]
[318103850,1710073846042,-500.0,0.00022739,2]
[318103851,1710073846054,-559.24,0.00022739,2]
[318103852,1710073846066,-205.58996785,0.00022739,2]
[318103853,1710073846078,-480.68396301,0.00022739,2]
[318103854,1710073846090,-500.0,0.00022739,2]
[318103856,1710073846102,-500.0,0.00022739,2]
[318103858,1710073846112,-236.38884705,0.00022739,2]
[318103861,1710073846122,-500.0,0.00022739,2]
[318103864,1710073846134,-500.0,0.00022739,2]
[318103866,1710073846145,-500.0,0.00022739,2]
[318103868,1710073846156,-500.0,0.00022739,2]
[318103870,1710073846166,-500.0,0.00022739,2]
[318103872,1710073846175,-500.0,0.00022739,2]
[318103874,1710073846185,-500.0,0.00022739,2]
[318103876,1710073846196,-973.54,0.00022739,2]
[318103878,1710073846206,-500.0,0.00022739,2]
[318103880,1710073846216,-800.07,0.00022739,2]
[318103882,1710073846226,-800.07,0.00022739,2]
[318103883,1710073846236,-800.07,0.00022739,2]
[318103884,1710073846246,-344.00587177,0.00022739,2]
[318103885,1710073846255,-500.0,0.00022739,2]
[318103886,1710073846265,-2020.54,0.00022739,2]
[318103887,1710073846274,-2020.54,0.00022739,2]
[318103888,1710073846284,-2020.54,0.00022739,2]
[318103889,1710073846294,-254.15014286,0.00022739,2]
[318103890,1710073846303,-1975.44,0.00022739,2]
[318103891,1710073846312,-1975.44,0.00022739,2]
[318103892,1710073846324,-1975.44,0.00022739,2]
[318103893,1710073846334,-3427.3,0.00022739,2]
[318103894,1710073846343,-500.0,0.00022739,2]
[318103895,1710073846352,-500.0,0.00022739,2]
[318103896,1710073846362,-500.0,0.00022739,2]
[318103897,1710073846372,-871.17,0.00022739,2]
[318103898,1710073846381,-871.17,0.00022739,2]
[318103899,1710073846391,-871.17,0.00022739,2]
[318103900,1710073846400,-500.0,0.00022739,2]
[318103901,1710073846409,-500.0,0.00022739,2]
[318103902,1710073846419,-500.0,0.00022739,2]
[318103903,1710073846429,-500.0,0.00022739,2]
[318103904,1710073846438,-500.0,0.00022739,2]
[318103905,1710073846448,-500.0,0.00022739,2]
[318103906,1710073846458,-500.0,0.00022739,2]
[318103907,1710073846468,-500.0,0.00022739,2]
[318103908,1710073846477,-500.0,0.00022739,2]
[318103909,1710073846487,-500.0,0.00022739,2]
[318103910,1710073846496,-3170.58,0.00022739,2]
[318103911,1710073846507,-500.0,0.00022739,2]
[318103912,1710073846516,-3170.58,0.00022739,2]
[318103913,1710073846525,-3170.58,0.00022739,2]
[318103914,1710073846535,-500.0,0.00022739,2]
[318103915,1710073846544,-500.0,0.00022739,2]
[318103916,1710073846554,-500.0,0.00022739,2]
[318103917,1710073846563,-500.0,0.00022739,2]
[318103918,1710073846573,-3649.11,0.00022739,2]
[318103919,1710073846582,-3649.11,0.00022739,2]
[318103920,1710073846591,-3649.11,0.00022739,2]
[318103921,1710073846600,-310.23832171,0.00022739,2]
[318103922,1710073846609,-500.0,0.00022739,2]
[318103923,1710073846618,-500.0,0.00022739,2]
[318103924,1710073846627,-2323.77,0.00022739,2]
[318103925,1710073846636,-2323.77,0.00022739,2]
[318103926,1710073846646,-2323.77,0.00022739,2]
[318103927,1710073846655,-500.0,0.00022739,2]
[318103929,1710073846664,-500.0,0.00022739,2]
[318103931,1710073846674,-500.0,0.00022739,2]
[318103933,1710073846683,-500.0,0.00022739,2]
[318103935,1710073846693,-2563.83,0.00022739,2]
[318103936,1710073846703,-2563.83,0.00022739,2]
[318103938,1710073846712,-2563.83,0.00022739,2]
[318103940,1710073846721,-500.0,0.00022739,2]
[318103943,1710073846729,-500.0,0.00022739,2]
[318103946,1710073846739,-500.0,0.00022739,2]
[318103948,1710073846748,-500.0,0.00022739,2]
[318103951,1710073846757,-500.0,0.00022739,2]
[318103954,1710073846766,-500.0,0.00022739,2]
[318103957,1710073846775,-517.7,0.00022739,2]
[318103960,1710073846785,-517.7,0.00022739,2]
[318103962,1710073846795,-517.7,0.00022739,2]
[318103964,1710073846803,-500.0,0.00022739,2]
[318103966,1710073846812,-1102.77,0.00022739,2]
[318103967,1710073846823,-1102.77,0.00022739,2]
[318103968,1710073846832,-1102.77,0.00022739,2]
[318103970,1710073846841,-1315.49193506,0.00022799,2]
[318103972,1710073846850,-5188.19919716,0.000228,6]
[318103973,1710073846860,-7299.25440815,0.00022831,2]
[318103975,1710073846874,-3565.35016049,0.00022831,2]
[318103976,1710073846883,-341.10732534,0.00022831,2]
[318103978,1710073846892,-160.0,0.00022898,2]
[318103979,1710073846901,-500.0,0.00022898,2]
[318103980,1710073846911,-500.0,0.00022898,2]
[318103981,1710073846920,-500.0,0.00022898,2]
[318103982,1710073846929,-500.0,0.00022898,2]
[318103983,1710073846937,-500.0,0.00022898,2]
[318103984,1710073846946,-500.0,0.00022898,2]
[318103985,1710073846956,-473.58509533,0.00022898,2]
[318103986,1710073846965,-800.07,0.00022898,2]
[318103987,1710073846974,-800.07,0.00022898,2]
[318103988,1710073846983,-800.07,0.00022898,2]
[318103989,1710073846992,-800.07,0.00022898,2]
[318103990,1710073847001,-800.07,0.00022898,2]
[318103991,1710073847011,-800.07,0.00022898,2]
[318103992,1710073847020,-800.07,0.00022898,2]
[318103993,1710073847029,-2020.54,0.00022898,2]
[318103994,1710073847038,-2020.54,0.00022898,2]
[318103995,1710073847047,-2020.54,0.00022898,2]
[318103996,1710073847059,-2020.54,0.00022898,2]
[318103997,1710073847069,-2020.54,0.00022898,2]
[318103998,1710073847080,-2020.54,0.00022898,2]
[318103999,1710073847091,-2020.54,0.00022898,2]
[318104000,1710073847103,-1975.44,0.00022898,2]
[318104001,1710073847113,-1975.44,0.00022898,2]
[318104003,1710073847123,-1975.44,0.00022898,2]
[318104005,1710073847132,-1975.44,0.00022898,2]
[318104006,1710073847143,-1975.44,0.00022898,2]
[318104007,1710073847153,-1975.44,0.00022898,2]
[318104008,1710073847162,-1975.44,0.00022898,2]
[318104009,1710073847174,-500.0,0.00022898,2]
[318104010,1710073847184,-500.0,0.00022898,2]
[318104011,1710073847195,-500.0,0.00022898,2]
[318104012,1710073847205,-500.0,0.00022898,2]
[318104013,1710073847217,-500.0,0.00022898,2]
[318104014,1710073847228,-500.0,0.00022898,2]
[318104015,1710073847238,-871.17,0.00022898,2]
[318104016,1710073847249,-500.0,0.00022898,2]
[318104017,1710073847258,-871.17,0.00022898,2]
[318104018,1710073847269,-871.17,0.00022898,2]
[318104019,1710073847280,-871.17,0.00022898,2]
[318104020,1710073847292,-871.17,0.00022898,2]
[318104021,1710073847302,-871.17,0.00022898,2]
[318104022,1710073847313,-500.0,0.00022898,2]
[318104023,1710073847325,-871.17,0.00022898,2]
[318104024,1710073847334,-500.0,0.00022898,2]
[318104025,1710073847346,-500.0,0.00022898,2]
[318104026,1710073847356,-500.0,0.00022898,2]
[318104027,1710073847366,-500.0,0.00022898,2]
[318104028,1710073847376,-500.0,0.00022898,2]
[318104029,1710073847386,-500.0,0.00022898,2]
[318104030,1710073847397,-500.0,0.00022898,2]
[318104031,1710073847406,-500.0,0.00022898,2]
[318104032,1710073847415,-500.0,0.00022898,2]
[318104033,1710073847424,-316.12496626,0.00022898,2]
[318104034,1710073847434,-3170.58,0.00022898,2]
[318104035,1710073847443,-3170.58,0.00022898,2]
[318104036,1710073847453,-3170.58,0.00022898,2]
[318104037,1710073847463,-3170.58,0.00022898,2]
[318104038,1710073847473,-3170.58,0.00022898,2]
[318104039,1710073847483,-3170.58,0.00022898,2]
[318104040,1710073847493,-3170.58,0.00022898,2]
[318104041,1710073847503,-3649.11,0.00022898,2]
[318104042,1710073847513,-3649.11,0.00022898,2]
[318104043,1710073847523,-3649.11,0.00022898,2]
[318104044,1710073847533,-3649.11,0.00022898,2]
[318104045,1710073847543,-3649.11,0.00022898,2]
[318104046,1710073847554,-3649.11,0.00022898,2]
[318104047,1710073847564,-3649.11,0.00022898,2]
[318104048,1710073847578,-2323.77,0.00022898,2]
[318104049,1710073847588,-2323.77,0.00022898,2]
[318104050,1710073847600,-2323.77,0.00022898,2]
[318104051,1710073847610,-2323.77,0.00022898,2]
[318104052,1710073847621,-2323.77,0.00022898,2]
[318104053,1710073847632,-2323.77,0.00022898,2]
[318104054,1710073847642,-2323.77,0.00022898,2]
[318104055,1710073847651,-500.0,0.00022898,2]
[318104056,1710073847662,-500.0,0.00022898,2]
[318104057,1710073847673,-500.0,0.00022898,2]
[318104058,1710073847683,-500.0,0.00022898,2]
[318104059,1710073847694,-500.0,0.00022898,2]
[318104060,1710073847704,-500.0,0.00022898,2]
[318104061,1710073847715,-500.0,0.00022898,2]
[318104062,1710073847726,-2563.83,0.00022898,2]
[318104063,1710073847736,-2563.83,0.00022898,2]
[318104064,1710073847748,-2563.83,0.00022898,2]
[318104065,1710073847759,-2563.83,0.00022898,2]
[318104066,1710073847770,-2563.83,0.00022898,2]
[318104067,1710073847780,-2563.83,0.00022898,2]
[318104068,1710073847790,-2563.83,0.00022898,2]
[318104069,1710073847802,-500.0,0.00022898,2]
[318104070,1710073847813,-500.0,0.00022898,2]
[318104071,1710073847828,-500.0,0.00022898,2]
[318104072,1710073847839,-500.0,0.00022898,2]
[318104073,1710073847851,-500.0,0.00022898,2]
[318104074,1710073847862,-500.0,0.00022898,2]
[318104075,1710073847873,-393.26241912,0.00022898,2]
[318104076,1710073847884,-500.0,0.00022898,2]
[318104077,1710073847895,-178.65543491,0.00022898,2]
[318104078,1710073847905,-517.7,0.00022898,2]
[318104079,1710073847915,-517.7,0.00022898,2]
[318104080,1710073847926,-517.7,0.00022898,2]
[318104081,1710073847936,-517.7,0.00022898,2]
[318104082,1710073847946,-517.7,0.00022898,2]
[318104083,1710073847957,-517.7,0.00022898,2]
[318104084,1710073847967,-517.7,0.00022898,2]
[318104085,1710073847978,-1102.77,0.00022898,2]
[318104086,1710073847988,-279.70872407,0.00022899,3]
[318104087,1710073847998,-276000.0,0.00022899,2]
[318104088,1710073848011,-151.0,0.00022899,2]
[318104089,1710073848022,-2000.0,0.000229,2]
[318104090,1710073848031,-174.0,0.000229,2]
[318104091,1710073848041,-175.75,0.000229,2]
[318104092,1710073848052,-299.0,0.000229,2]
[318104093,1710073848064,-800.07,0.00022909,2]
[318104094,1710073848075,-1975.44,0.00022909,2]
[318104095,1710073848084,-500.0,0.00022909,2]
[318104096,1710073848094,-2323.77,0.00022909,2]
[318104097,1710073848107,-500.0,0.00022909,2]
[318104098,1710073848198,-2563.83,0.00022909,2]
[318104099,1710073848209,-517.7,0.00022909,2]
[318104100,1710073848218,-2000.0,0.0002291,2]
[318104101,1710073848228,-2020.54,0.0002291,2]
[318104102,1710073848238,-871.17,0.0002291,2]
[318104103,1710073848251,-500.0,0.0002291,2]
[318104104,1710073848262,-3170.58,0.0002291,2]
[318104105,1710073848272,-3649.11,0.0002291,2]
[318104106,1710073848283,-500.0,0.00022911,2]
[318104107,1710073848293,-415.670188,0.00022913,2]
[318104108,1710073848303,-469.98406,0.00022913,2]
[318104109,1710073848312,-2000.0,0.0002292,2]
[318104110,1710073848322,-2000.0,0.0002293,2]
[318104111,1710073848333,-2000.0,0.0002294,2]
[318104112,1710073848343,-2000.0,0.0002295,2]
[318104113,1710073848353,-2000.0,0.0002296,2]
[318104114,1710073848364,-2000.0,0.0002297,2]
[318104115,1710073848373,-293.11134806,0.00022974,2]
[318104116,1710073848383,-2000.0,0.0002298,2]
[318104117,1710073848394,-2000.0,0.0002299,2]
[318104118,1710073848403,-800.07,0.00022994,2]
[318104119,1710073848413,-2020.54,0.00022994,2]
[318104120,1710073848422,-1975.44,0.00022994,2]
[318104121,1710073848431,-348.25330224,0.00022994,2]
[318104122,1710073848440,-871.17,0.00022994,2]
[318104123,1710073848450,-500.0,0.00022994,2]
[318104124,1710073848459,-3170.58,0.00022994,2]
[318104125,1710073848468,-3649.11,0.00022994,2]
[318104126,1710073848479,-2323.77,0.00022994,2]
[318104127,1710073848488,-500.0,0.00022994,2]
[318104128,1710073848497,-2563.83,0.00022994,2]
[318104129,1710073848506,-517.7,0.00022994,2]
[318104130,1710073848516,-500.0,0.00022995,2]
[318104131,1710073848525,-500.0,0.00022995,2]
[318104132,1710073848534,-500.0,0.00022995,2]